[Event "GER-ch Youth U12 2020"]
[Site "Willingen"]
[Date "2020.10.30"]
[Round "5.25"]
[White "Göpfert, Gregor"]
[Black "Ivanov, Alexander"]
[Result "1-0"]
[ECO "B27"]
[WhiteElo "1603"]
[BlackElo "1261"]
[Annotator "NA RC"]
[PlyCount "79"]
[EventDate "2020.10.27"]
[EventType "swiss"]
[EventRounds "7"]
[EventCountry "GER"]
[SourceTitle "playchess.com"]
[Source "ChessBase"]
[SourceQuality "1"]
[TimeControl "40/5400+30:1800+30"]

1. e4 {[%emt 0:00:00]} c5 {[%emt 0:00:00]} 2. Nf3 {[%emt 0:00:00]} g6 {[%emt 0:00:00]} 3. d4 {[%emt 0:00:00]} cxd4 {[%emt 0:00:00]} 4. Nxd4 {[%emt 0:00:02]} Bg7 {[%emt 0:00:21]} 5. Be3 {[%emt 0:01:40]} Nc6 {[%emt 0:00:20]} 6. c4 {[%emt 0:04:20]} d6 {[%emt 0:01:34]} 7. Qd2 {[%emt 0:03:26]} Nf6 {[%emt 0:00:24]} 8. Nc3 {[%emt 0:00:05]} O-O {[%emt 0:00:34]} 9. Be2 {[%emt 0:00:08]} a6 {[%emt 0:03:10]} 10. h3 {[%emt 0:02:20]} Nxd4 {[%emt 0:02:37]} 11. Bxd4 {[%emt 0:07:27]} Qc7 {[%emt 0:03:24]} 12. O-O {[%emt 0:01:39]} Qc6 {[%emt 0:01:19]} 13. Bd3 {[%emt 0:05:57]} Rd8 {[%emt 0:00:38]} 14. Bxf6 {[%emt 0:06:46]} Bxf6 {[%emt 0:00:29]} 15. Nd5 {[%emt 0:00:10]} Kf8 {[%emt 0:03:37]} 16. Nxf6 {[%emt 0:00:25]} exf6 {[%emt 0:00:09]} 17. Rfd1 {[%emt 0:05:04]} Be6 {[%emt 0:00:53]} 18. Rac1 {[%emt 0:00:35]} Rd7 {[%emt 0:01:29]} 19. Qh6+ {[%emt 0:02:21]} Kg8 {[%emt 0:00:53]} 20. b3 {[%emt 0:03:32]} Qc5 {[%emt 0:01:26]} 21. Bb1 {[%emt 0:06:43]} Rad8 {[%emt 0:01:40]} 22. Rc2 {[%emt 0:06:38]} b5 {[%emt 0:01:16]} 23. cxb5 {[%emt 0:00:55]} Qxb5 {[%emt 0:00:13]} 24. Qe3 {[%emt 0:00:55]} d5 {[%emt 0:01:33]} 25. Rcd2 {[%emt 0:00:44]} dxe4 {[%emt 0:03:02]} 26. Rxd7 {[%emt 0:00:15]} Rxd7 {[%emt 0:00:38]} 27. Rxd7 {[%emt 0:00:37]} Qxd7 {[%emt 0:00:14]} 28. Qxe4 {[%emt 0:02:04]} Qd1+ {[%emt 0:00:19]} 29. Kh2 {[%emt 0:00:32]} Bf5 {[%emt 0:00:18]} 30. Qa8+ {[%emt 0:00:14]} Kg7 {[%emt 0:00:14]} 31. Bxf5 {[%emt 0:00:20]} gxf5 {[%emt 0:00:12]} 32. Qxa6 {[%emt 0:00:54]} Qd2 {[%emt 0:01:27]} 33. Qb6 {[%emt 0:09:45]} Qxa2 {[%emt 0:00:42]} 34. b4 {[%emt 0:05:11]} Qb2 {[%emt 0:01:37]} 35. Qb8 {[%emt 0:01:38]} Qxf2 {[%emt 0:00:54]} 36. Qg3+ {[%emt 0:00:16]} Qxg3+ 37. Kxg3 Kf8 {[%emt 0:00:54]} 38. Kf4 {[%emt 0:01:12]} Ke7 {[%emt 0:00:16]} 39. Kxf5 {[%emt 0:00:15]} h6 {[%emt 0:00:09]} 40. g4 {[%emt 0:00:38]} 1-0

[Event "GER-ch Youth U12 2020"]
[Site "Willingen"]
[Date "2020.10.30"]
[Round "5.26"]
[White "Stadelmann, Constantin"]
[Black "Brandstrup, Luca Alexander"]
[Result "0-1"]
[ECO "D05"]
[WhiteElo "1366"]
[BlackElo "1575"]
[Annotator "NA RC"]
[PlyCount "58"]
[EventDate "2020.10.27"]
[EventType "swiss"]
[EventRounds "7"]
[EventCountry "GER"]
[SourceTitle "playchess.com"]
[Source "ChessBase"]
[SourceQuality "1"]
[TimeControl "40/5400+30:1800+30"]

1. d4 {[%emt 0:00:00]} Nf6 {[%emt 0:00:00]} 2. Nf3 {[%emt 0:00:00]} e6 {[%emt 0:00:00]} 3. e3 {[%emt 0:00:00]} c5 {[%emt 0:00:11]} 4. b3 {[%emt 0:00:23]} d5 {[%emt 0:01:38]} 5. Bd3 {[%emt 0:00:20]} Be7 {[%emt 0:00:45]} 6. O-O {[%emt 0:00:35]} O-O {[%emt 0:08:11]} 7. Bb2 {[%emt 0:00:33]} Nbd7 {[%emt 0:01:11]} 8. Nbd2 {[%emt 0:00:23]} b6 {[%emt 0:01:08]} 9. Ne5 {[%emt 0:00:16]} Nxe5 {[%emt 0:01:02]} 10. dxe5 {[%emt 0:00:13]} Nd7 {[%emt 0:00:19]} 11. f4 {[%emt 0:00:12]} f6 {[%emt 0:00:52]} 12. Qh5 {[%emt 0:02:46]} f5 {[%emt 0:01:37]} 13. g4 {[%emt 0:02:46]} g6 {[%emt 0:03:32]} 14. Qh3 {[%emt 0:02:19]} Bb7 {[%emt 0:01:17]} 15. Rf3 {[%emt 0:05:07]} d4 {[%emt 0:01:51]} 16. e4 {[%emt 0:00:55]} fxe4 {[%emt 0:01:05]} 17. Nxe4 {[%emt 0:00:25]} Rf7 {[%emt 0:01:36]} 18. c3 {[%emt 0:29:32]} dxc3 {[%emt 0:01:13]} 19. Bxc3 {[%emt 0:00:09]} Bd5 {[%emt 0:03:19]} 20. Re1 {[%emt 0:02:08]} Qc7 {[%emt 0:03:19]} 21. f5 {[%emt 0:09:08]} Nxe5 {[%emt 0:07:04]} 22. Bxe5 {[%emt 0:00:15]} Qxe5 {[%emt 0:00:54]} 23. f6 {[%emt 0:00:14]} Qd4+ {[%emt 0:04:05]} 24. Kf1 {[%emt 0:04:33]} Bxf6 {[%emt 0:05:26]} 25. g5 {[%emt 0:01:31]} Be7 {[%emt 0:01:41]} 26. Rxf7 {[%emt 0:03:51]} Kxf7 {[%emt 0:00:17]} 27. Qxh7+ {[%emt 0:00:39]} Qg7 {[%emt 0:00:26]} 28. Qh4 {[%emt 0:00:47]} Kg8 {[%emt 0:04:04]} 29. Qf4 {[%emt 0:00:34]} Rf8 {[%emt 0:00:46]} 0-1

[Event "GER-ch Youth U12 2020"]
[Site "Willingen"]
[Date "2020.10.30"]
[Round "5.27"]
[White "Detjen, Mattes"]
[Black "Dorendorf, Mika"]
[Result "0-1"]
[ECO "B22"]
[WhiteElo "1190"]
[BlackElo "1462"]
[Annotator "NA RC"]
[PlyCount "34"]
[EventDate "2020.10.27"]
[EventType "swiss"]
[EventRounds "7"]
[EventCountry "GER"]
[SourceTitle "playchess.com"]
[Source "ChessBase"]
[SourceQuality "1"]
[TimeControl "40/5400+30:1800+30"]

1. e4 {[%emt 0:00:00]} c5 {[%emt 0:00:01]} 2. c3 {[%emt 0:00:00]} Nf6 {[%emt 0:00:02]} 3. e5 {[%emt 0:00:15]} Nd5 {[%emt 0:00:04]} 4. d4 {[%emt 0:00:28]} cxd4 {[%emt 0:00:55]} 5. Nf3 {[%emt 0:01:29]} e6 {[%emt 0:01:24]} 6. cxd4 {[%emt 0:02:25]} Nc6 {[%emt 0:02:47]} 7. Nc3 {[%emt 0:03:53]} d6 {[%emt 0:03:48]} 8. exd6 {[%emt 0:02:30]} Bxd6 {[%emt 0:01:23]} 9. Bd3 {[%emt 0:02:04]} a6 {[%emt 0:05:04]} 10. O-O {[%emt 0:01:44]} Bd7 {[%emt 0:10:22]} 11. a3 {[%emt 0:05:43]} h6 {[%emt 0:09:55]} 12. Bc2 {[%emt 0:02:32]} Qc7 {[%emt 0:05:35]} 13. b4 {[%emt 0:02:09]} Nxc3 14. Qd3 {[%emt 0:02:05]} Nd5 {[%emt 0:01:30]} 15. b5 {[%emt 0:03:57]} axb5 {[%emt 0:00:38]} 16. Qxb5 {[%emt 0:00:12]} Nxd4 {[%emt 0:00:11]} 17. Qd3 {[%emt 0:00:49]} Nxc2 {[%emt 0:00:33]} 0-1

[Event "GER-ch Youth U12 2020"]
[Site "Willingen"]
[Date "2020.10.30"]
[Round "5.28"]
[White "Ehrlich, Patrick"]
[Black "Bondarcuks, Timurs"]
[Result "1-0"]
[ECO "B08"]
[WhiteElo "1448"]
[BlackElo "1198"]
[Annotator "NA RC"]
[PlyCount "89"]
[EventDate "2020.10.27"]
[EventType "swiss"]
[EventRounds "7"]
[EventCountry "GER"]
[SourceTitle "playchess.com"]
[Source "ChessBase"]
[SourceQuality "1"]
[TimeControl "40/5400+30:1800+30"]

1. d4 {[%emt 0:00:00]} Nf6 {[%emt 0:00:00]} 2. Nf3 {[%emt 0:00:00]} g6 {[%emt 0:00:00]} 3. Nc3 {[%emt 0:00:35]} Bg7 {[%emt 0:00:00]} 4. e4 {[%emt 0:00:18]} d6 {[%emt 0:00:05]} 5. Be2 {[%emt 0:00:10]} O-O {[%emt 0:00:11]} 6. O-O {[%emt 0:00:14]} Nbd7 {[%emt 0:00:20]} 7. Be3 {[%emt 0:00:22]} e5 {[%emt 0:00:19]} 8. dxe5 {[%emt 0:07:38]} dxe5 {[%emt 0:02:44]} 9. Qd2 {[%emt 0:01:46]} b6 {[%emt 0:00:50]} 10. Rad1 {[%emt 0:00:27]} Bb7 {[%emt 0:01:21]} 11. Bc4 {[%emt 0:07:07]} Bxe4 {[%emt 0:06:17]} 12. Nxe4 {[%emt 0:01:12]} Nxe4 {[%emt 0:00:15]} 13. Qxd7 {[%emt 0:00:22]} Qxd7 {[%emt 0:02:17]} 14. Rxd7 {[%emt 0:00:15]} Nd6 {[%emt 0:06:25]} 15. Rxc7 {[%emt 0:00:32]} Nxc4 {[%emt 0:00:09]} 16. Rxc4 {[%emt 0:00:21]} Rac8 {[%emt 0:00:41]} 17. Rxc8 {[%emt 0:00:51]} Rxc8 {[%emt 0:00:05]} 18. c3 {[%emt 0:00:15]} Rd8 {[%emt 0:00:29]} 19. Re1 {[%emt 0:01:01]} Kf8 {[%emt 0:05:41]} 20. a4 {[%emt 0:00:37]} Rd7 {[%emt 0:03:29]} 21. g3 {[%emt 0:02:16]} f5 {[%emt 0:03:41]} 22. a5 {[%emt 0:01:53]} bxa5 {[%emt 0:01:15]} 23. Bc5+ {[%emt 0:00:07]} Kg8 {[%emt 0:00:57]} 24. Nxe5 {[%emt 0:00:18]} Rd5 {[%emt 0:00:12]} 25. Bd4 {[%emt 0:00:29]} Rb5 {[%emt 0:03:50]} 26. Nc4 {[%emt 0:03:36]} Bxd4 {[%emt 0:00:41]} 27. cxd4 {[%emt 0:00:10]} Rb4 {[%emt 0:00:15]} 28. Nxa5 {[%emt 0:00:07]} Rxd4 {[%emt 0:00:45]} 29. Nc6 {[%emt 0:00:29]} Rd2 {[%emt 0:01:38]} 30. Rb1 {[%emt 0:00:30]} Rd7 {[%emt 0:00:16]} 31. b4 {[%emt 0:01:04]} Rb7 {[%emt 0:01:13]} 32. b5 {[%emt 0:00:10]} Rb6 {[%emt 0:00:42]} 33. Nxa7 {[%emt 0:00:14]} Rb7 {[%emt 0:01:39]} 34. b6 {[%emt 0:00:12]} Kf7 {[%emt 0:02:06]} 35. Nc6 {[%emt 0:00:34]} Kg7 {[%emt 0:00:10]} 36. Na5 {[%emt 0:00:18]} Rb8 {[%emt 0:00:29]} 37. b7 {[%emt 0:00:08]} Kh6 {[%emt 0:00:19]} 38. Nc6 {[%emt 0:00:08]} Re8 {[%emt 0:01:05]} 39. b8=Q {[%emt 0:00:12]} Rxb8 {[%emt 0:00:21]} 40. Rxb8 {[%emt 0:00:13]} f4 {[%emt 0:00:29]} 41. gxf4 {[%emt 0:30:45]} Kh5 {[%emt 0:30:25]} 42. Rh8 {[%emt 0:00:38]} h6 {[%emt 0:00:19]} 43. Ne5 {[%emt 0:00:26]} g5 {[%emt 0:01:49]} 44. fxg5 {[%emt 0:00:27]} Kxg5 {[%emt 0:00:27]} 45. Nf7+ {[%emt 0:00:15]} 1-0

[Event "GER-ch Youth U12 2020"]
[Site "Willingen"]
[Date "2020.10.30"]
[Round "6.3"]
[White "Haubold, Sebastian Marcel"]
[Black "Kempe, Caius Emilian"]
[Result "0-1"]
[ECO "C07"]
[WhiteElo "1769"]
[BlackElo "1840"]
[Annotator "NA RC"]
[PlyCount "72"]
[EventDate "2020.10.27"]
[EventType "swiss"]
[EventRounds "7"]
[EventCountry "GER"]
[SourceTitle "playchess.com"]
[Source "ChessBase"]
[SourceQuality "1"]
[TimeControl "40/5400+30:1800+30"]

{[%evp 25,65,6,0,0,-1,0,102,-52,-35,-53,-17,-53,-19,-57,-40,32767,32767,32767,32767,32767,32767,-76,-65,-94,-65,-77,32767,-254,-100,-258,0,-239,-217,-227,-305,-426,-403,-437,-413,-853,-905,-880]} 1. e4 e6 2. d4 d5 3. Nd2 c5 4. exd5 cxd4 5. Ngf3 Qxd5 6. Bc4 Qd6 7. O-O Nf6 8. Nb3 Nc6 9. Nbxd4 {[%emt 0:02:36]} Nxd4 {[%emt 0:01:00]} 10. Nxd4 {[%emt 0:00:13]} a6 {[%emt 0:00:18]} 11. Bb3 {[%emt 0:03:08]} Qc7 {[%emt 0:01:01]} 12. Qf3 {[%emt 0:03:58]} Bd6 {[%emt 0:03:31]} 13. h3 {[%emt 0:06:32]} O-O {[%emt 0:01:57]} 14. Bg5 {[%emt 0:02:14]} Nd7 {[%emt 0:04:29]} 15. Rad1 {[%emt 0:05:15] [#] C07: French Tarrasch: 3...c5, 4 Ngf3 and 4 exd5 Qxd5.} b5 $146 {[%emt 0:10:08]} ({Predecessor:} 15... Nc5 $11 {keeps the balance.} 16. Rd2 Nxb3 17. axb3 h6 18. Be3 Bc5 19. Rfd1 e5 20. Nf5 Bxe3 21. Nxe3 Be6 22. Nd5 Bxd5 23. Qxd5 {½-½ (43) Pavasovic,D (2540)-Roberson,P (2412) chess.com INT 2018}) 16. Qe3 {[%emt 0:17:03]} (16. Qxa8 $16 Bb7 17. Qa7 (17. Nxe6 fxe6 18. Bxe6+ Kh8 $14) 17... Bh2+ 18. Kh1 Bxg2+ 19. Kxg2 Qxa7 20. Kxh2) 16... Nc5 {[%emt 0:02:34]} 17. c3 {[%emt 0:15:35]} Nxb3 {[%emt 0:17:41]} 18. axb3 {[%emt 0:00:43]} Bb7 {[%emt 0:06:50]} 19. Kh1 {[%emt 0:08:25]} Rfe8 {[%emt 0:01:34]} 20. Rfe1 {[%emt 0:04:07]} f6 {[%emt 0:04:18]} 21. Bh4 {[%emt 0:02:21]} e5 {[%emt 0:01:41]} 22. Nf5 {[%emt 0:00:58]} Bf8 {[%emt 0:00:18]} 23. Qg3 {[%emt 0:01:12]} Kh8 {[%emt 0:01:13]} 24. Qg4 {[%emt 0:10:13]} Rad8 {[%emt 0:02:00]} 25. Rxd8 {[%emt 0:00:10]} Rxd8 {[%emt 0:00:36]} 26. Re3 $2 {[%emt 0:00:41]} ({White should play} 26. Ne3 $15) 26... Bd5 $2 {[%emt 0:08:02]} (26... Qf7 $19 27. Re1 Qxb3) 27. b4 $2 {[%emt 0:09:48]} (27. f4 $17 {was worth a try.} e4 28. Nd4) 27... Bc4 $2 {[%emt 0:07:01]} (27... Qd7 $19 28. Kh2 Be6) 28. Rg3 $2 {[%emt 0:00:39]} (28. f4 $1 $11 {and White has nothing to worry.}) 28... Rd2 {[%emt 0:09:40]} 29. Qf3 {[%emt 0:02:37]} g5 {[%emt 0:06:38]} ({Don't go for} 29... Rxb2 $2 {[#]} 30. Qa8 $1 $18 {[%mdl 576] Double Attack}) 30. Qa8 {[%emt 0:01:57]} Qd8 {[%emt 0:02:23]} 31. Bxg5 {[%emt 0:01:43]} fxg5 {[%emt 0:03:51]} ({Not} 31... Qxa8 32. Bxf6+ {[%mdl 64] Double Attack} Bg7 33. Bxg7+ Kg8 34. Nh6#) ({Weaker is} 31... Rd1+ 32. Kh2 $19) 32. Qxa6 {[%emt 0:00:25]} (32. Qxd8 $142 Rxd8 33. Ne3) 32... Rxf2 {[%emt 0:01:30]} 33. Ne3 $19 {[%emt 0:01:33]} Bd3 {[%emt 0:03:46]} 34. Qe6 {[%emt 0:01:39]} e4 {[%emt 0:00:59]} 35. Nf5 {[%emt 0:00:48]} Rf1+ {[%emt 0:00:56]} 36. Kh2 {[%emt 0:00:06]} Rxf5 {[%emt 0:00:21]} 0-1

[Event "GER-ch Youth U12 2020"]
[Site "Willingen"]
[Date "2020.10.30"]
[Round "6.4"]
[White "Fruth, David"]
[Black "Sauer, Tim"]
[Result "0-1"]
[ECO "B11"]
[WhiteElo "1665"]
[BlackElo "1729"]
[Annotator "NA RC"]
[PlyCount "96"]
[EventDate "2020.10.27"]
[EventType "swiss"]
[EventRounds "7"]
[EventCountry "GER"]
[SourceTitle "playchess.com"]
[Source "ChessBase"]
[SourceQuality "1"]
[TimeControl "40/5400+30:1800+30"]

1. e4 c6 {[%emt 0:00:00]} 2. Nf3 {[%emt 0:00:00]} d5 {[%emt 0:00:00]} 3. Nc3 {[%emt 0:00:00]} Bg4 {[%emt 0:00:00]} 4. h3 {[%emt 0:00:00]} Bxf3 {[%emt 0:00:00]} 5. Qxf3 {[%emt 0:00:00]} Nf6 {[%emt 0:00:00]} 6. d4 dxe4 {[%emt 0:00:00]} 7. Nxe4 {[%emt 0:00:43]} Qxd4 {[%emt 0:00:05]} 8. Bd3 {[%emt 0:00:33]} Nbd7 {[%emt 0:00:06]} 9. Be3 {[%emt 0:00:22]} Qd5 {[%emt 0:00:04]} 10. O-O {[%emt 0:03:55]} g6 {[%emt 0:00:32]} 11. Rfd1 {[%emt 0:00:07]} Bg7 {[%emt 0:00:37]} 12. Qf4 {[%emt 0:10:14]} Qe5 {[%emt 0:06:10]} 13. Nxf6+ {[%emt 0:05:16]} Bxf6 {[%emt 0:03:00]} 14. Qg4 {[%emt 0:02:49]} h5 {[%emt 0:04:13]} 15. Qf3 {[%emt 0:00:31]} Qc7 {[%emt 0:00:58]} 16. Re1 {[%emt 0:04:33]} O-O {[%emt 0:07:37]} 17. Bf4 {[%emt 0:03:47]} Qb6 {[%emt 0:01:15]} 18. Qg3 {[%emt 0:00:35]} Kg7 {[%emt 0:13:26]} 19. Be3 {[%emt 0:02:00]} c5 {[%emt 0:06:03]} 20. Qf4 {[%emt 0:03:20]} Rh8 {[%emt 0:03:58]} 21. Rab1 {[%emt 0:02:46]} Qd6 {[%emt 0:07:41]} 22. Qf3 {[%emt 0:00:18]} Rab8 {[%emt 0:17:12]} 23. Bf4 {[%emt 0:00:58]} Be5 {[%emt 0:03:52]} 24. Be3 {[%emt 0:03:22]} Qf6 {[%emt 0:01:16]} 25. Qxf6+ {[%emt 0:00:59]} Kxf6 {[%emt 0:01:46]} 26. Bb5 {[%emt 0:00:14]} Rbd8 {[%emt 0:06:52]} 27. Rbd1 {[%emt 0:01:35]} Bd6 {[%emt 0:01:46]} 28. Bxd7 {[%emt 0:00:27]} Rxd7 {[%emt 0:00:06]} 29. Bxc5 {[%emt 0:00:05]} Rhd8 {[%emt 0:00:27]} 30. Bxd6 {[%emt 0:01:29]} Rxd6 {[%emt 0:00:05]} 31. Rxd6+ {[%emt 0:00:04]} Rxd6 {[%emt 0:00:03]} 32. Re2 {[%emt 0:00:01]} Ra6 {[%emt 0:00:54]} 33. a3 {[%emt 0:00:05]} Rb6 {[%emt 0:00:13]} 34. b3 {[%emt 0:00:02]} Rd6 {[%emt 0:00:21]} 35. g3 {[%emt 0:00:15]} b5 {[%emt 0:00:22]} 36. f4 {[%emt 0:04:50]} Rd5 {[%emt 0:05:22]} 37. Kf2 {[%emt 0:00:14]} a5 {[%emt 0:00:29]} 38. Ke3 {[%emt 0:00:30]} Rd6 {[%emt 0:03:05]} 39. Kf3 {[%emt 0:01:10]} Rc6 {[%emt 0:02:27]} 40. g4 {[%emt 0:00:18]} Rc3+ {[%emt 0:00:56]} 41. Kg2 {[%emt 0:31:02]} hxg4 {[%emt 0:35:50]} 42. hxg4 {[%emt 0:00:06]} e6 {[%emt 0:01:07]} 43. Kf2 {[%emt 0:02:01]} a4 {[%emt 0:00:00]} 44. g5+ {[%emt 0:00:00]} Kf5 {[%emt 0:00:00]} 45. Re3 {[%emt 0:00:00]} Rxc2+ {[%emt 0:00:00]} 46. Kf3 {[%emt 0:00:00]} Rc5 {[%emt 0:00:00]} 47. bxa4 {[%emt 0:00:00]} bxa4 {[%emt 0:00:00]} 48. Rd3 {[%emt 0:00:00]} Rc4 {[%emt 0:00:00]} 0-1

[Event "GER-ch Youth U12 2020"]
[Site "Willingen"]
[Date "2020.10.30"]
[Round "6.5"]
[White "Sundui, Chinguun"]
[Black "Korek, Jakob Alexander"]
[Result "1/2-1/2"]
[ECO "C48"]
[WhiteElo "1788"]
[BlackElo "1592"]
[Annotator "NA RC"]
[PlyCount "76"]
[EventDate "2020.10.27"]
[EventType "swiss"]
[EventRounds "7"]
[EventCountry "GER"]
[SourceTitle "playchess.com"]
[Source "ChessBase"]
[SourceQuality "1"]
[TimeControl "40/5400+30:1800+30"]

1. e4 {[%emt 0:00:00]} e5 {[%emt 0:00:00]} 2. Nf3 {[%emt 0:00:00]} Nc6 {[%emt 0:00:00]} 3. Nc3 {[%emt 0:00:00]} Nf6 {[%emt 0:00:17]} 4. Bb5 {[%emt 0:00:18]} Bc5 {[%emt 0:01:23]} 5. O-O {[%emt 0:00:22]} d6 {[%emt 0:01:50]} 6. d4 {[%emt 0:00:49]} exd4 {[%emt 0:01:08]} 7. Nxd4 {[%emt 0:00:31]} Bxd4 {[%emt 0:01:40]} 8. Qxd4 {[%emt 0:01:12]} Bd7 {[%emt 0:01:39]} 9. Bxc6 {[%emt 0:00:56]} Bxc6 {[%emt 0:00:56]} 10. Bg5 {[%emt 0:01:31]} h6 {[%emt 0:02:04]} 11. Bxf6 {[%emt 0:00:58]} Qxf6 {[%emt 0:00:19]} 12. Qxf6 {[%emt 0:00:19]} gxf6 {[%emt 0:00:11]} 13. Nd5 {[%emt 0:02:17]} Bxd5 {[%emt 0:00:40]} 14. exd5 {[%emt 0:00:06]} Kd7 {[%emt 0:00:27]} 15. Rae1 {[%emt 0:00:43]} Rae8 {[%emt 0:01:58]} 16. Re3 {[%emt 0:02:54]} Re5 {[%emt 0:01:07]} 17. c4 {[%emt 0:02:29]} Rhe8 {[%emt 0:03:42]} 18. Rfe1 {[%emt 0:02:36]} a6 {[%emt 0:02:26]} 19. Kf1 {[%emt 0:07:39]} b5 {[%emt 0:05:54]} 20. b3 {[%emt 0:01:20]} b4 {[%emt 0:08:29]} 21. Ke2 {[%emt 0:03:22]} c5 {[%emt 0:02:00]} 22. Kd3 {[%emt 0:02:02]} h5 {[%emt 0:09:49]} 23. Ra1 {[%emt 0:18:29]} Rxe3+ {[%emt 0:05:05]} 24. fxe3 {[%emt 0:00:10]} Rg8 {[%emt 0:01:45]} 25. Rg1 {[%emt 0:01:49]} a5 {[%emt 0:03:09]} 26. g3 {[%emt 0:06:28]} Ke7 {[%emt 0:02:30]} 27. Ke4 {[%emt 0:02:39]} Rg4+ {[%emt 0:04:13]} 28. Kf3 {[%emt 0:00:22]} Rg8 {[%emt 0:03:27]} 29. Rf1 {[%emt 0:07:38]} a4 {[%emt 0:03:05]} 30. h3 {[%emt 0:15:33]} a3 {[%emt 0:01:03]} 31. Rg1 {[%emt 0:01:42]} Rg5 {[%emt 0:04:53]} 32. g4 {[%emt 0:04:11]} h4 {[%emt 0:05:09]} 33. e4 {[%emt 0:00:53]} Kf8 {[%emt 0:10:00]} 34. Ke3 {[%emt 0:02:32]} Kg7 35. Rf1 {[%emt 0:03:12]} Kg6 {[%emt 0:01:11]} 36. Rf4 {[%emt 0:02:00]} Re5 {[%emt 0:01:15]} 37. Kf3 {[%emt 0:00:45]} Rg5 {[%emt 0:00:36]} 38. Rf5 {[%emt 0:01:40]} Rxf5+ {[%emt 0:00:59]} 1/2-1/2

[Event "GER-ch Youth U12 2020"]
[Site "Willingen"]
[Date "2020.10.30"]
[Round "6.6"]
[White "Udelnov, Valentin"]
[Black "Honisch, Alexander"]
[Result "1/2-1/2"]
[ECO "C54"]
[WhiteElo "1691"]
[BlackElo "1667"]
[Annotator "NA RC"]
[PlyCount "113"]
[EventDate "2020.10.27"]
[EventType "swiss"]
[EventRounds "7"]
[EventCountry "GER"]
[SourceTitle "playchess.com"]
[Source "ChessBase"]
[SourceQuality "1"]
[TimeControl "40/5400+30:1800+30"]

1. e4 {[%emt 0:00:00]} e5 {[%emt 0:00:03]} 2. Nf3 {[%emt 0:00:00]} Nc6 {[%emt 0:00:22]} 3. Bc4 {[%emt 0:00:00]} Bc5 {[%emt 0:00:32]} 4. c3 {[%emt 0:00:04]} Nf6 {[%emt 0:00:27]} 5. d3 {[%emt 0:00:17]} d6 {[%emt 0:00:21]} 6. O-O {[%emt 0:00:23]} a6 {[%emt 0:00:45]} 7. a4 {[%emt 0:00:16]} Ba7 {[%emt 0:01:10]} 8. Nbd2 {[%emt 0:01:36]} O-O {[%emt 0:05:30]} 9. h3 {[%emt 0:00:36]} Ne7 {[%emt 0:05:43]} 10. d4 {[%emt 0:03:53]} Ng6 {[%emt 0:01:38]} 11. Re1 {[%emt 0:00:54]} c6 {[%emt 0:01:45]} 12. Ba2 {[%emt 0:04:50]} Qe7 {[%emt 0:08:13]} 13. Qc2 {[%emt 0:03:55]} Be6 {[%emt 0:01:24]} 14. Nf1 {[%emt 0:03:28]} Bxa2 {[%emt 0:02:14]} 15. Rxa2 {[%emt 0:00:52]} Rfe8 {[%emt 0:01:47]} 16. Ng3 {[%emt 0:00:37]} h6 {[%emt 0:01:45]} 17. Ra1 {[%emt 0:04:07]} b5 {[%emt 0:04:14]} 18. dxe5 {[%emt 0:06:27]} dxe5 {[%emt 0:01:43]} 19. Nf5 {[%emt 0:00:37]} Qc7 {[%emt 0:01:10]} 20. Be3 {[%emt 0:02:39]} Bxe3 {[%emt 0:02:39]} 21. Rxe3 {[%emt 0:00:37]} Nf4 {[%emt 0:01:27]} 22. Nh2 {[%emt 0:05:09]} Rad8 {[%emt 0:01:42]} 23. Rg3 {[%emt 0:04:11]} Ng6 {[%emt 0:02:20]} 24. Qe2 {[%emt 0:05:12]} Rd7 {[%emt 0:06:53]} 25. Ng4 {[%emt 0:01:50]} Re6 {[%emt 0:09:28]} 26. h4 {[%emt 0:02:28]} Ne8 {[%emt 0:03:51]} 27. Ngxh6+ {[%emt 0:09:47]} gxh6 {[%emt 0:03:15]} 28. h5 {[%emt 0:00:22]} Kh7 {[%emt 0:01:01]} 29. hxg6+ {[%emt 0:00:07]} fxg6 {[%emt 0:01:36]} 30. Qg4 {[%emt 0:00:22]} Rf6 {[%emt 0:02:49]} 31. axb5 {[%emt 0:04:03]} cxb5 {[%emt 0:02:35]} 32. Ne3 {[%emt 0:04:38]} Rfd6 {[%emt 0:02:06]} 33. Nd5 {[%emt 0:01:18]} Qd8 {[%emt 0:00:21]} 34. Rd1 {[%emt 0:04:48]} Nc7 {[%emt 0:02:14]} 35. Nf6+ {[%emt 0:02:25]} Qxf6 {[%emt 0:00:08]} 36. Qxd7+ {[%emt 0:00:06]} Rxd7 {[%emt 0:00:05]} 37. Rxd7+ {[%emt 0:00:03]} Kg8 {[%emt 0:00:41]} 38. Rxc7 {[%emt 0:00:20]} Qd6 {[%emt 0:00:49]} 39. Rc8+ {[%emt 0:01:31]} Kg7 {[%emt 0:00:27]} 40. b4 {[%emt 0:01:39]} h5 {[%emt 0:03:59]} 41. Rc5 {[%emt 0:31:24]} h4 {[%emt 0:36:26]} 42. Rd5 {[%emt 0:06:07]} Qc7 {[%emt 0:03:44]} 43. Rgd3 {[%emt 0:00:27]} Qc4 {[%emt 0:00:20]} 44. Rd7+ {[%emt 0:02:50]} Kh6 {[%emt 0:00:19]} 45. Re3 {[%emt 0:00:25]} Qb3 {[%emt 0:00:55]} 46. Rd5 {[%emt 0:04:02]} Qb1+ {[%emt 0:01:17]} 47. Kh2 {[%emt 0:00:21]} Qc2 {[%emt 0:00:11]} 48. Rxe5 {[%emt 0:01:44]} Qxf2 {[%emt 0:02:48]} 49. Rf3 {[%emt 0:00:20]} Qe1 {[%emt 0:01:05]} 50. Re6 {[%emt 0:00:56]} Kh5 {[%emt 0:03:07]} 51. e5 {[%emt 0:05:56]} g5 {[%emt 0:03:30]} 52. Re8 {[%emt 0:01:41]} Qe4 {[%emt 0:00:00]} 53. Rh8+ {[%emt 0:00:00]} Kg6 {[%emt 0:00:00]} 54. Rf6+ {[%emt 0:00:00]} Kg7 {[%emt 0:00:00]} 55. Re8 {[%emt 0:00:00]} g4 {[%emt 0:00:00]} 56. Re7+ {[%emt 0:00:00]} Kg8 {[%emt 0:00:00]} 57. Re8+ {[%emt 0:00:00]} 1/2-1/2